bitfinex/quotes_SOLUSD_20220103
["timestamp","ask_amount","ask_price","bid_price","bid_amount"]
[1641242658046,82.18757364,166.99,166.79,7.38]
[1641242658248,82.18757364,166.99,166.79,8.54669368]
[1641242658448,82.18757364,166.99,166.85,8.9882]
[1641242658449,7.12,166.98,166.85,8.9882]
[1641242658647,7.12,166.98,166.86,2.34508008]
[1641242659047,1.51357243,166.97,166.86,2.34508008]
[1641242659750,8.63357243,166.98,166.82,29.9579]
[1641242659948,44.99577243,166.98,166.79,29.9639]
[1641242660151,16.95626611,166.98,166.75,132.1429]
[1641242660350,15.52957243,166.98,166.75,132.1429]
[1641242660849,1.51357243,166.95,166.76,33.3195915]
[1641242661051,8.89357243,166.95,166.76,33.3195915]
[1641242661253,8.89357243,166.95,166.8,2.89739653]
[1641242661448,9.39357243,166.95,166.76,30.64367851]
[1641242661649,1.51357243,166.93,166.76,30.64367851]
[1641242661848,7.12,166.92,166.76,30.64367851]
[1641242662048,8.80669368,166.92,166.76,30.64367851]
[1641242662251,9.30669368,166.92,166.76,30.64367851]
[1641242662448,8.9954,166.84,166.76,30.64367851]
[1641242662649,7.12,166.87,166.76,30.64367851]
[1641242662848,8.63357243,166.87,166.76,30.64367851]
[1641242663052,8.89357243,166.87,166.72,2.164535]
[1641242663448,15.10557243,166.87,166.72,2.164535]
[1641242663951,22.79907255,166.86,166.72,1.664535]
[1641242664153,22.79907255,166.86,166.72,26.86710595]
[1641242664350,8.63357243,166.89,166.72,26.86710595]
[1641242664550,8.89357243,166.89,166.72,26.86710595]
[1641242664750,8.9932,166.88,166.73,29.9765]
[1641242664954,0.26,166.88,166.74,7.12]
[1641242665153,0.00357243,166.89,166.75,69.56854202]
[1641242665353,0.00357243,166.89,166.76,30.9133974]
[1641242665554,0.00357243,166.89,166.77,7.12]
[1641242665751,3.27764384,166.98,166.84,8.9866]
[1641242665952,3.27764384,166.98,166.85,27.84621257]
[1641242666556,3.27764384,166.98,166.85,28.10621257]
[1641242666753,3.27764384,167.0,166.89,8.9866]
[1641242666953,3.27764384,167.0,166.9,25.49092688]
[1641242667353,28.40296208,167.02,166.9,2.66894138]
[1641242667354,26.63914384,167.02,166.9,2.66894138]
[1641242668054,24.76451756,167.0,166.9,2.66894138]
[1641242668658,24.76451756,167.0,166.89,29.85580213]
[1641242668857,15.77701756,167.0,166.83,29.9583]
[1641242669058,15.43799056,166.88,166.78,8.9919]
[1641242669556,15.43799056,166.88,166.79,2.97965195]
[1641242670156,15.43799056,166.88,166.79,11.97155195]
[1641242670355,15.43799056,166.88,166.8,24.62939609]
[1641242670763,11.43799056,166.88,166.8,24.88939609]
[1641242670957,3.27764384,166.96,166.82,2.42610724]
[1641242671360,3.27764384,166.96,166.82,2.68610724]
[1641242671758,58.78266207,166.99,166.82,2.68610724]
[1641242672660,58.78266207,166.99,166.88,8.9868]
[1641242672858,58.78266207,166.99,166.89,31.57805851]
[1641242672859,69.4250868,166.99,166.89,31.57805851]
[1641242673065,7.12,166.98,166.77,7.12]
[1641242673461,19.88373289,166.98,166.77,7.12]
[1641242673660,28.7538495,166.98,166.77,7.12]
[1641242673865,37.7425495,166.98,166.86,2.59723048]
[1641242674062,37.7425495,166.98,166.86,27.63948114]
[1641242674263,28.87243289,166.98,166.86,27.63948114]
[1641242675262,19.88373289,166.98,166.86,36.62748114]
[1641242675463,19.62373289,166.98,166.86,36.88748114]
[1641242675662,58.78266207,166.99,166.86,36.88748114]
[1641242676863,58.78266207,166.99,166.86,42.80748114]
[1641242678065,58.78266207,166.99,166.86,49.92748114]
[1641242681165,58.78266207,166.99,166.86,44.00748114]
[1641242681367,58.78266207,166.99,166.86,43.74748114]
[1641242682765,58.78266207,166.99,166.86,44.00748114]
[1641242685268,34.78266207,166.99,166.86,44.00748114]
[1641242685468,0.00266207,166.99,166.87,59.43]
[1641242685670,0.00266207,166.99,166.93,8.9807]
[1641242685873,0.00266207,166.99,166.94,2.1547946]
[1641242686071,0.00266207,166.99,166.94,2.4147946]
[1641242687475,3.27764384,167.1,166.96,8.9806]
[1641242687675,3.27764384,167.1,166.97,33.81377501]
[1641242688074,3.27764384,167.1,166.97,34.07377501]
[1641242688274,3.27764384,167.11,166.98,7.12]
[1641242688477,3.27764384,167.11,167.04,8.9772]
[1641242688674,3.27764384,167.11,167.05,31.03353632]
[1641242689073,3.27764384,167.14,167.05,31.29353632]
[1641242689479,3.27764384,167.14,167.09,8.9751]
[1641242689676,3.27764384,167.14,167.1,25.67469295]
[1641242690074,3.27764384,167.18,167.1,25.93469295]
[1641242690885,3.27764384,167.18,167.13,8.9733]
[1641242691182,3.27764384,167.23,167.14,31.0884466]
[1641242691992,3.27764384,167.24,167.14,40.0609466]
[1641242692788,3.27764384,167.24,167.14,40.3209466]
[1641242693985,10.03776908,167.23,167.14,40.3209466]
[1641242694815,10.03776908,167.23,167.14,47.4409466]
[1641242695219,3.27764384,167.25,167.14,47.4409466]
[1641242696224,3.27764384,167.32,167.14,47.4409466]
[1641242696820,11.45702711,167.32,167.14,47.4409466]
[1641242697019,17.42856911,167.32,167.14,47.1809466]
[1641242698020,146.85604384,167.34,167.14,47.1809466]
[1641242698221,139.73604384,167.34,167.14,47.1809466]
[1641242698420,139.73604384,167.34,167.14,47.4409466]
[1641242698622,136.4584,167.34,167.14,47.4409466]
[1641242698821,23.2876,167.34,167.14,47.4409466]
[1641242699023,3.27764384,167.3,167.14,47.4409466]
[1641242699220,2.77764384,167.3,167.14,47.4409466]
[1641242701025,2.77764384,167.3,167.14,47.1809466]
[1641242701225,3.03764384,167.3,167.14,47.1809466]
[1641242702428,31.7661,167.32,167.14,47.1809466]
[1641242702625,6.75849553,167.29,167.14,47.1809466]
[1641242703426,6.75849553,167.31,167.14,47.1809466]
[1641242703828,7.01849553,167.31,167.14,47.1809466]
[1641242704027,5.04146208,167.29,167.14,47.1809466]
[1641242704228,14.01336208,167.29,167.14,47.1809466]
[1641242704430,5.30146208,167.29,167.14,47.1809466]
[1641242704627,5.04146208,167.29,167.14,47.1809466]
[1641242706030,22.7957,167.32,167.14,47.1809466]
[1641242706631,23.0557,167.32,167.14,47.4409466]
[1641242707229,22.7957,167.32,167.14,47.4409466]
[1641242709632,75.4191,167.33,167.14,47.4409466]
[1641242710632,75.4191,167.33,167.15,59.43]
[1641242710834,75.4191,167.33,167.24,8.9657]
[1641242711032,75.9557,167.35,167.25,34.67142195]
[1641242711233,1.3039,167.38,167.25,34.67142195]
[1641242711434,22.5219,167.37,167.25,34.93142195]
[1641242711837,22.5219,167.37,167.25,64.81302195]
[1641242712238,22.5219,167.37,167.25,34.93142195]
[1641242712437,22.5219,167.37,167.26,7.12]
[1641242712635,77.4800123,167.4,167.26,7.12]
[1641242712839,77.4800123,167.4,167.32,8.9628]
[1641242713038,0.5920123,167.4,167.33,26.1855356]
[1641242713536,0.5920123,167.4,167.33,26.4455356]
[1641242713938,0.5920123,167.4,167.36,8.9607]
[1641242714136,0.5920123,167.4,167.37,29.49466572]
[1641242714338,0.5920123,167.4,167.38,6.06439992]
[1641242714936,0.5920123,167.4,167.38,15.02419992]
[1641242715136,93.7,167.47,167.39,48.0]
[1641242715340,93.7,167.47,167.4,2.63413014]
[1641242715538,93.7,167.47,167.41,26.33688255]
[1641242715837,24.8154,167.52,167.41,26.33688255]
[1641242716040,122.8079,167.54,167.44,8.956]
[1641242716341,1.42669368,167.57,167.45,31.80504445]
[1641242716540,16.96823347,167.58,167.45,32.06504445]
[1641242716741,14.28673347,167.58,167.45,32.06504445]
[1641242716949,14.28673347,167.58,167.45,39.18504445]
[1641242717440,5.04146208,167.58,167.45,39.18504445]
[1641242717745,5.04146208,167.58,167.45,48.14054445]
[1641242718145,17.42465466,167.58,167.45,48.14054445]
[1641242718744,75.5743,167.61,167.45,48.14054445]
[1641242718942,1.3515,167.61,167.45,53.35154445]
[1641242719144,18.77615466,167.61,167.45,53.35154445]
[1641242719342,20.20284834,167.61,167.45,53.09154445]
[1641242719548,19.03615466,167.61,167.45,53.09154445]
[1641242719943,1.3515,167.61,167.45,53.09154445]
[1641242720144,73.8245,167.62,167.45,53.09154445]
[1641242720747,92.67584834,167.62,167.45,47.88054445]
[1641242720949,107.48000107,167.62,167.45,47.88054445]
[1641242721448,107.74000107,167.62,167.45,47.88054445]
[1641242721847,107.74000107,167.62,167.45,48.14054445]
[1641242722349,108.24000107,167.62,167.45,48.14054445]
[1641242722751,108.24000107,167.62,167.45,47.88054445]
[1641242722951,7.12,167.61,167.45,31.80504445]
[1641242723351,24.70060107,167.6,167.45,31.80504445]
[1641242723654,7.12,167.59,167.45,31.80504445]
[1641242723852,32.32060107,167.59,167.45,31.80504445]
[1641242724054,16.5212178,167.58,167.45,31.80504445]
[1641242724251,14.02543104,167.58,167.45,31.80504445]
[1641242724456,7.00948463,167.58,167.45,31.80504445]
[1641242724653,6.74948463,167.58,167.45,31.80504445]
[1641242725053,79.67375273,167.62,167.45,31.80504445]
[1641242725254,73.8245,167.62,167.45,37.06304445]
[1641242725454,73.8245,167.62,167.46,7.12]
[1641242725858,73.8245,167.62,167.46,7.38]
[1641242726060,73.8245,167.62,167.47,1.42669368]
[1641242726261,73.8245,167.62,167.48,9.94501688]
[1641242726460,73.8245,167.62,167.49,27.17051424]
[1641242726663,73.8245,167.62,167.53,8.9511]
[1641242726861,47.8753,167.64,167.54,27.94006401]
[1641242727061,22.8289,167.67,167.54,28.20006401]
[1641242727260,22.8289,167.67,167.54,27.94006401]
[1641242727462,40.25355466,167.67,167.54,27.94006401]
[1641242728063,49.20555466,167.67,167.54,27.94006401]
[1641242728283,41.02617139,167.67,167.54,28.20006401]
[1641242728682,41.52617139,167.67,167.54,28.20006401]
[1641242729281,32.0409,167.67,167.54,28.20006401]
[1641242729681,31.7809,167.67,167.54,28.20006401]
[1641242729882,22.8289,167.67,167.54,28.20006401]
[1641242730482,22.8289,167.67,167.54,27.94006401]
[1641242730885,23.3289,167.67,167.54,27.94006401]
[1641242731082,32.281,167.67,167.54,27.94006401]
[1641242731484,32.541,167.67,167.54,27.94006401]
[1641242732287,32.541,167.67,167.5,8.9529]
[1641242732490,0.30678871,167.65,167.41,7.12]
[1641242732687,9.25641487,167.6,167.41,7.12]
[1641242732889,8.9559,167.6,167.41,7.12]
[1641242733085,8.7159,167.6,167.42,1.42669368]
[1641242733286,0.26,167.6,167.43,40.02720226]
[1641242733590,1.3641,167.63,167.47,8.9545]
[1641242733787,1.3641,167.63,167.48,35.17888532]
[1641242734086,1.6241,167.63,167.48,35.43888532]
[1641242734287,1.3641,167.63,167.48,35.43888532]
[1641242734690,1.8641,167.63,167.48,35.43888532]
[1641242734890,1.3641,167.63,167.48,35.43888532]
[1641242736292,1.3641,167.63,167.51,2.50244198]
[1641242736491,129.8114,167.64,167.51,2.50244198]
[1641242736492,57.1589,167.64,167.51,2.50244198]
[1641242736694,57.1589,167.64,167.48,33.10263723]
[1641242736897,57.6589,167.64,167.48,25.72263723]
[1641242737195,7.12,167.63,167.48,25.72263723]
[1641242737396,7.62,167.63,167.48,25.72263723]
[1641242737595,8.9567,167.58,167.48,25.72263723]
[1641242737993,9.2167,167.58,167.48,25.72263723]
[1641242739393,0.26,167.58,167.48,25.72263723]
[1641242739593,9.2155,167.6,167.48,25.72263723]
[1641242740801,9.2155,167.6,167.48,34.75166037]
[1641242741298,0.26,167.6,167.48,34.75166037]
[1641242741494,79.8184,167.62,167.48,34.75166037]
[1641242741697,86.9384,167.62,167.48,34.75166037]
[1641242742096,8.9554,167.6,167.48,28.26366037]
[1641242742296,79.5584,167.62,167.49,1.42669368]
[1641242742496,79.5584,167.62,167.51,2.42577106]
[1641242742696,79.5584,167.62,167.53,25.93125542]
[1641242742999,48.2054,167.64,167.54,7.12]
[1641242743195,1.236,167.68,167.55,2.80284722]
[1641242743397,1.3098,167.67,167.55,2.80284722]
[1641242743596,8.9511,167.68,167.55,11.75314722]
[1641242743996,8.9511,167.68,167.55,12.01314722]
[1641242744498,8.9511,167.68,167.55,18.39814722]
[1641242744698,8.9511,167.68,167.55,18.13814722]
[1641242745099,8.9511,167.68,167.55,9.18784722]
[1641242745500,9.7111,167.68,167.55,9.18784722]
[1641242745699,9.7111,167.68,167.55,2.80284722]
[1641242745898,9.2111,167.68,167.55,2.80284722]
[1641242746098,8.9511,167.68,167.55,2.80284722]
[1641242747500,9.2111,167.68,167.55,2.80284722]
[1641242747700,239.0526,167.7,167.55,2.80284722]
[1641242747901,86.7586,167.7,167.55,2.80284722]
[1641242748499,86.7586,167.7,167.55,3.06284722]
[1641242748708,86.7586,167.7,167.55,11.75324722]
[1641242748902,86.7586,167.7,167.55,2.80284722]
[1641242749099,87.2586,167.7,167.55,2.80284722]
[1641242750204,87.2586,167.7,167.55,3.06284722]
[1641242750504,87.5186,167.7,167.55,2.80284722]
[1641242750709,87.5186,167.7,167.55,11.75354722]
[1641242751304,87.2586,167.7,167.55,11.75354722]
[1641242752006,87.2586,167.7,167.55,12.01354722]
[1641242754111,87.2586,167.7,167.53,25.93125542]
[1641242754306,7.12,167.69,167.53,8.9517]
[1641242754513,7.38,167.69,167.49,7.12]
[1641242754807,8.9532,167.63,167.49,7.12]
[1641242755010,9.2132,167.63,167.5,2.1970342]
[1641242756009,9.2132,167.63,167.5,11.1509342]
[1641242756210,9.2132,167.63,167.51,24.63844944]
[1641242757009,9.2132,167.63,167.51,24.89844944]
[1641242757608,9.2132,167.63,167.51,33.59144944]
[1641242757811,8.9525,167.65,167.51,33.59144944]
[1641242758009,8.9525,167.65,167.51,40.80544944]
[1641242758810,11.6573,167.66,167.51,40.80544944]
[1641242759012,11.6573,167.66,167.51,48.18544944]
[1641242759214,2.7058,167.66,167.51,48.18544944]
[1641242760011,2.7058,167.66,167.51,40.97144944]
[1641242760213,2.7058,167.66,167.51,42.39814312]
[1641242760411,2.7058,167.66,167.51,40.97144944]
[1641242761011,2.7058,167.66,167.51,40.71144944]
[1641242762039,2.9658,167.66,167.51,40.71144944]
[1641242762640,11.9172,167.66,167.51,40.71144944]
[1641242763641,19.5372,167.66,167.51,24.63844944]
[1641242764044,19.5372,167.66,167.5,2.1970342]
[1641242764242,0.31018326,167.64,167.5,2.1970342]
[1641242764444,8.9555,167.59,167.5,2.1970342]
[1641242764643,8.9555,167.59,167.44,36.9685]
[1641242764844,9.2155,167.59,167.44,36.9685]
[1641242765049,9.2155,167.59,167.47,8.9552]
[1641242765241,9.2155,167.59,167.45,29.21905282]
[1641242765642,9.7155,167.59,167.45,31.65327559]
[1641242765842,9.2155,167.59,167.45,31.65327559]
[1641242766041,9.7155,167.59,167.45,31.65327559]
[1641242766743,9.7155,167.59,167.46,8.9562]
[1641242767547,8.9544,167.6,167.46,14.3232]
[1641242767946,24.7045,167.61,167.46,14.3232]
[1641242767947,24.7045,167.61,167.46,14.5832]
[1641242768345,24.7045,167.61,167.46,21.7032]
[1641242768947,33.6584,167.61,167.46,21.7032]
[1641242769848,24.7045,167.61,167.46,21.7032]
[1641242770049,24.9645,167.61,167.46,21.7032]
[1641242771050,6.74596209,167.6,167.46,21.7032]
[1641242771452,7.00596209,167.6,167.46,16.3362]
[1641242772853,6.74596209,167.59,167.46,16.3362]
[1641242773051,7.00596209,167.59,167.46,16.3362]
[1641242773951,7.50596209,167.59,167.46,16.3362]
[1641242774351,0.26,167.59,167.46,16.3362]
[1641242774553,9.2144,167.6,167.46,16.3362]
[1641242774952,6.74579295,167.59,167.46,16.3362]
[1641242775353,7.00579295,167.59,167.46,16.3362]
[1641242775955,6.74579295,167.59,167.46,16.3362]
[1641242776760,78.8283,167.62,167.46,16.3362]
[1641242776960,5.04146208,167.63,167.47,1.42669368]
[1641242777165,5.04146208,167.63,167.55,8.951]
[1641242777364,24.591,167.65,167.56,29.26448963]
[1641242777557,1.3407,167.66,167.56,29.52448963]
[1641242777755,127.4764,167.67,167.56,29.52448963]
[1641242777957,103.17,167.67,167.5,7.12]
[1641242778164,8.9522,167.64,167.54,8.952]
[1641242778355,8.9522,167.64,167.5,7.38]
[1641242778960,9.4522,167.64,167.51,31.77762625]
[1641242779156,8.9522,167.64,167.51,31.77762625]
[1641242779356,9.2122,167.64,167.51,31.77762625]
[1641242779760,9.2122,167.64,167.53,8.9526]
[1641242779963,0.26,167.64,167.54,2.98076685]
[1641242780158,0.26,167.64,167.54,9.91176685]
[1641242780364,103.43,167.67,167.55,28.51492182]
[1641242780766,77.1934,167.67,167.58,8.9499]
[1641242780960,0.5,167.67,167.59,28.62370122]
[1641242781361,0.5,167.68,167.59,28.88370122]
[1641242781861,9.4499,167.69,167.59,28.88370122]
[1641242782262,9.4499,167.69,167.59,28.62370122]
[1641242782565,9.4499,167.69,167.59,28.88370122]
[1641242782763,9.4499,167.69,167.59,37.83300122]
[1641242782962,23.1706,167.7,167.59,44.26900122]
[1641242783163,93.7,167.72,167.59,44.26900122]
[1641242783964,93.7,167.72,167.59,51.38900122]
[1641242784266,93.7,167.72,167.66,8.9438]
[1641242784567,93.7,167.72,167.67,30.43487457]
[1641242785067,93.7,167.72,167.67,30.69487457]
[1641242785267,93.7,167.72,167.69,8.943]
[1641242785464,93.7,167.72,167.7,6.02571029]
[1641242785773,93.7,167.72,167.7,3.03219997]
[1641242786166,93.7,167.72,167.64,7.12]
[1641242786365,9.24527139,167.79,167.64,7.38]
[1641242786567,9.74527139,167.79,167.65,2.68187272]
[1641242786769,0.26,167.79,167.65,34.47516531]
[1641242786965,0.79941099,167.8,167.65,34.73516531]
[1641242787367,0.29941099,167.8,167.65,34.73516531]
[1641242788465,0.29941099,167.8,167.68,2.85747589]
[1641242789667,9.24311099,167.8,167.69,8.9439]
[1641242789867,3.37023416,167.78,167.7,25.58909854]
[1641242790069,3.63023416,167.78,167.7,25.58909854]
[1641242791078,3.37023416,167.78,167.7,25.58909854]
[1641242791269,3.37023416,167.78,167.71,2.88448492]
[1641242791465,3.37023416,167.78,167.71,3.14448492]
[1641242792266,3.37023416,167.79,167.72,8.9418]
[1641242792466,3.87023416,167.79,167.72,8.9418]
[1641242792671,3.87023416,167.79,167.72,9.2018]
[1641242793067,0.5,167.79,167.72,9.2018]
[1641242793570,4.16964515,167.8,167.72,9.2018]
[1641242794171,0.79941099,167.8,167.72,9.2018]
[1641242794369,0.29941099,167.8,167.72,9.2018]
[1641242797574,0.29941099,167.8,167.73,7.12]
[1641242797777,0.29941099,167.8,167.74,25.76821184]
[1641242797973,0.29941099,167.8,167.77,2.83712816]
[1641242798181,0.29941099,167.8,167.79,25.20273756]
[1641242798774,3.37023416,167.84,167.79,25.46273756]
[1641242799074,3.37023416,167.85,167.8,48.99941565]
[1641242799573,3.37023416,167.85,167.8,49.25941565]
[1641242800378,80.90343416,167.92,167.8,3.25941565]
[1641242800575,81.16343416,167.92,167.79,25.20273756]
[1641242800787,81.66343416,167.92,167.79,25.20273756]
[1641242801076,1.42669368,167.91,167.79,25.20273756]
[1641242801276,81.66343416,167.92,167.79,25.20273756]
[1641242801477,81.40343416,167.92,167.79,25.20273756]
[1641242801678,3.37023416,167.91,167.8,2.49948031]
[1641242801876,3.87023416,167.91,167.8,2.49948031]
[1641242802076,3.87023416,167.91,167.8,2.75948031]
[1641242802677,3.87023416,167.91,167.8,11.69708031]
[1641242802879,0.5,167.91,167.8,11.69708031]
[1641242803277,78.0332,167.92,167.8,11.69708031]
[1641242804380,81.40343416,167.92,167.8,11.69708031]
[1641242804578,81.66343416,167.92,167.8,11.69708031]
[1641242805278,81.40343416,167.92,167.8,11.69708031]
[1641242806479,78.0332,167.92,167.8,11.69708031]
[1641242807491,77.5332,167.92,167.8,18.81708031]
[1641242807688,3.37023416,167.93,167.8,18.81708031]
[1641242807888,48.59953416,167.95,167.8,18.81708031]
[1641242808688,122.86853416,167.95,167.8,18.81708031]
[1641242809390,123.36853416,167.95,167.8,18.81708031]
[1641242809591,3.37023416,167.95,167.81,1.42669368]
[1641242809791,3.37023416,167.95,167.88,8.9324]
[1641242809992,3.37023416,167.95,167.89,33.85276698]
[1641242810393,3.37023416,167.96,167.89,34.11276698]
[1641242811220,3.37023416,167.99,167.89,34.11276698]
[1641242811616,3.37023416,167.99,167.93,28.42372027]
[1641242811818,3.37023416,167.98,167.93,28.42372027]
[1641242812616,3.37023416,167.98,167.93,37.61482027]
[1641242812816,23.1451,168.01,167.93,37.61482027]
[1641242813024,5.04146208,168.03,167.93,37.61482027]
[1641242813417,5.54146208,168.03,167.93,37.61482027]
[1641242814417,5.80146208,168.03,167.93,37.61482027]
[1641242814817,5.54146208,168.03,167.93,37.61482027]
[1641242815018,0.5,168.03,167.93,37.61482027]
[1641242815427,32.2196,168.04,167.93,37.61482027]
[1641242816219,32.4796,168.04,167.93,37.35482027]
[1641242816423,32.4796,168.04,167.89,29.7697]
[1641242816621,33.90629368,168.04,167.86,36.8943]
[1641242816823,7.12,168.03,167.82,7.12]
[1641242817022,8.9344,167.97,167.82,7.12]
[1641242817421,9.6944,167.97,167.83,26.41426177]
[1641242817621,9.1944,167.97,167.83,26.41426177]
[1641242818223,11.12109368,167.97,167.83,26.41426177]
[1641242819627,11.12109368,167.97,167.83,35.35066177]
[1641242820438,10.36109368,167.97,167.83,35.35066177]
[1641242820627,8.9344,167.97,167.83,35.35066177]
[1641242820828,8.9344,167.97,167.83,35.61066177]
[1641242821630,9.1944,167.97,167.83,35.61066177]
[1641242821828,9.6944,167.97,167.83,35.61066177]
[1641242822032,3.37023416,167.96,167.83,35.61066177]
[1641242822230,8.9356,167.95,167.83,35.61066177]
[1641242822633,12.56583416,167.95,167.83,35.61066177]
[1641242823832,3.37023416,167.94,167.83,35.61066177]
[1641242824032,3.63023416,167.94,167.83,35.61066177]
[1641242826437,0.26,167.94,167.83,35.61066177]
[1641242826637,0.26,167.94,167.83,35.35066177]
[1641242826837,3.63023416,167.95,167.83,35.35066177]
[1641242827238,3.63023416,167.95,167.83,26.41426177]
[1641242827638,3.37023416,167.94,167.83,26.41426177]
[1641242828041,3.63023416,167.94,167.83,26.41426177]
[1641242828440,3.37023416,167.91,167.83,26.41426177]
[1641242828850,3.63023416,167.91,167.83,26.41426177]
[1641242829047,0.26,167.91,167.83,26.41426177]
[1641242829472,3.63023416,167.92,167.83,26.41426177]
[1641242830474,3.37023416,167.92,167.83,26.41426177]
[1641242830877,12.30673416,167.93,167.83,26.41426177]
[1641242831973,12.56673416,167.93,167.83,26.41426177]
[1641242832576,13.06673416,167.93,167.83,26.41426177]
[1641242833573,13.06673416,167.93,167.77,52.648]
[1641242833574,12.56673416,167.93,167.79,8.9381]
[1641242833773,3.37023416,167.92,167.79,8.9381]
[1641242833976,3.63023416,167.92,167.79,8.9381]
[1641242834173,8.9385,167.9,167.79,8.9381]
[1641242834374,0.5,167.9,167.79,8.9381]
[1641242834574,0.26,167.9,167.8,34.80515499]
[1641242834874,26.42413416,167.92,167.8,34.80515499]
[1641242835387,26.42413416,167.92,167.8,35.06515499]
[1641242835573,26.42413416,167.92,167.82,8.937]
[1641242835974,23.3139,167.92,167.82,8.937]
[1641242836174,23.0539,167.92,167.82,8.937]
[1641242836377,23.0539,167.92,167.82,9.197]
[1641242837578,0.26,167.92,167.82,9.197]
[1641242837977,28.83513416,167.95,167.82,9.197]
[1641242838579,3.37023416,167.95,167.82,9.197]
[1641242838779,5.04146208,167.99,167.83,72.0]
[1641242838979,8.40277121,168.07,167.92,72.0]
[1641242839182,8.40277121,168.07,167.94,33.89545249]
[1641242839379,8.40277121,168.07,167.95,14.26498]
[1641242839578,8.40277121,168.07,167.95,14.52498]
[1641242839778,48.1367,168.12,167.95,14.52498]
[1641242839979,50.7977,168.12,167.98,8.9285]
[1641242840279,50.7977,168.12,167.95,14.26498]
[1641242840280,50.7977,168.12,167.95,7.14498]
[1641242840580,51.2977,168.12,167.95,7.14498]
[1641242840778,8.9293,168.08,167.95,7.40498]
[1641242840980,0.76,168.08,167.96,8.9291]
[1641242841181,0.5,168.08,167.96,16.07365]
[1641242841379,74.4715,168.13,167.96,16.07365]
[1641242841380,175.31254993,168.27,168.13,4.34660913]
[1641242841582,81.5673,168.29,168.15,33.13307819]
[1641242841786,8.9181,168.3,168.15,40.25307819]
[1641242841982,47.8789,168.31,168.15,40.25307819]
[1641242841983,47.8789,168.31,168.15,41.01307819]
[1641242842187,47.8789,168.31,168.19,42.0]
[1641242842188,14.27931673,168.31,168.19,42.0]
[1641242842384,23.7303,168.33,168.19,42.0]
[1641242842585,1.3304,168.34,168.15,40.75307819]
[1641242842786,23.01178362,168.36,168.16,24.0]
[1641242842984,8.9192,168.28,168.15,40.75307819]
[1641242843383,9.4192,168.28,168.15,40.75307819]
[1641242843984,9.4192,168.28,168.15,40.25307819]
[1641242844387,9.4192,168.28,168.15,33.13307819]
[1641242845384,9.4192,168.28,168.15,42.05197819]
[1641242845786,36.8477,168.34,168.15,42.31197819]
[1641242845986,36.8477,168.34,168.15,42.81197819]
[1641242846589,36.8477,168.34,168.15,42.55197819]
[1641242846786,29.7306,168.32,168.15,42.55197819]
[1641242846992,36.8506,168.32,168.15,33.63307819]
[1641242847187,37.3506,168.32,168.15,33.13307819]
[1641242847388,7.62,168.32,168.15,33.13307819]
[1641242848591,8.9196,168.27,168.15,33.13307819]
[1641242848993,9.6796,168.27,168.15,33.13307819]
[1641242849294,9.6796,168.27,168.13,11.48393913]
[1641242849598,0.31174878,168.26,168.13,11.48393913]
[1641242849793,9.22512679,168.2,168.13,3.913e-05]
[1641242849993,7.12,168.19,168.1,16.90229943]
[1641242850392,7.88,168.19,168.1,16.90229943]
[1641242850994,8.9267,168.15,168.1,12.58069943]
[1641242851293,53.0,168.14,167.99,29.23396277]
[1641242851495,53.26,168.14,167.99,29.23396277]
[1641242851694,53.76,168.14,167.99,29.73396277]
[1641242851895,8.9282,168.1,167.99,29.73396277]
[1641242852097,9.1882,168.1,168.0,2.83070026]
[1641242852295,9.6882,168.1,168.0,2.83070026]
[1641242852597,9.1882,168.1,168.0,2.83070026]
[1641242852998,9.6882,168.1,168.0,2.83070026]
[1641242854699,0.76,168.1,168.0,2.83070026]
[1641242854898,0.26,168.1,168.0,2.83070026]
[1641242855096,7.12,168.15,168.0,10.41970026]
[1641242855496,7.12,168.19,168.0,10.41970026]
[1641242855734,7.12,168.19,168.0,58.28070026]
[1641242856498,8.9252,168.16,168.0,67.20800026]
[1641242856698,8.9252,168.16,168.01,7.12]
[1641242856900,9.4252,168.16,168.01,7.62]
[1641242857100,180.8952,168.2,168.01,7.88]
[1641242857303,157.3446,168.2,168.14,25.35384131]
[1641242857499,93.7,168.21,168.14,25.35384131]
[1641242858399,94.2,168.21,168.14,25.35384131]
[1641242858601,103.1222,168.21,168.14,25.35384131]
[1641242860001,94.2,168.21,168.14,25.35384131]
[1641242860202,93.7,168.21,168.14,25.35384131]
[1641242861006,93.7,168.21,168.14,25.61384131]